fUST/lending_fUST_20260115
["ID","MTS","AMOUNT","RATE_DAILY","PERIOD"]
[401971328,1768429839367,-600.0,0.0001863,2]
[401971329,1768429839376,-2040.44472477,0.00018752,2]
[401971330,1768429839385,-661.31872797,0.00018778,17]
[401971331,1768429839395,-231483.25817476,0.000189,5]
[401971332,1768429839405,-303.10001603,0.000189,2]
[401971333,1768429839415,-1152.0,0.000189,2]
[401971334,1768429839425,-535.9,0.00018917,2]
[401971335,1768429839435,-17969.48957745,0.00019,2]
[401971336,1768429839444,-2603.49,0.00019,2]
[401971337,1768429839454,-303.10001603,0.00019089,2]
[401971338,1768429839463,-474.75221931,0.00019167,2]
[401971339,1768429839472,-180.72597661,0.00019178,2]
[401971340,1768429839481,-26990.35,0.000192,2]
[401971341,1768429839490,-167.77,0.000192,2]
[401971342,1768429839499,-500.99801519,0.00019205,5]
[401971344,1768429839508,-303.10001603,0.00019278,2]
[401971345,1768429839518,-303.10001603,0.00019467,2]
[401971346,1768429839528,-303.10001603,0.00019656,2]
[401971347,1768429839537,-800.0,0.00019726,2]
[401971349,1768429839547,-250.0,0.00019726,2]
[401971350,1768429839556,-250.0,0.00019726,2]
[401971352,1768429839566,-454.65002405,0.00019845,4]
[401971353,1768429839575,-535.9,0.00019937,2]
[401971354,1768429839585,-668.88471487,0.0002,2]
[401971355,1768429839594,-14703.49659754,0.0002,2]
[401971356,1768429839604,-261.56474834,0.0002,7]
[401971357,1768429839613,-371.66132516,0.0002,2]
[401971358,1768429839622,-6000.89259863,0.0002,2]
[401971359,1768429839631,-804.32909815,0.0002,2]
[401971360,1768429839641,-163524.2208646,0.0002,7]
[401971361,1768429839650,-74737.25492349,0.0002,2]
[401971362,1768429839660,-809.68655087,0.0002,2]
[401971363,1768429839669,-75199.65731769,0.0002,7]
[401971364,1768429839678,-202.7514447,0.0002,2]
[401971365,1768429839688,-504.32904356,0.0002,2]
[401971366,1768429839698,-673.07189375,0.0002,10]
[401971367,1768429839707,-17587.92944107,0.0002,2]
[401971368,1768429839716,-151.0,0.0002,2]
[401971369,1768429839729,-151.0,0.0002,2]
[401971370,1768429839738,-186.591978,0.0002,2]
[401971371,1768429839747,-186.591978,0.0002,2]
[401971372,1768429839756,-186.591978,0.0002,2]
[401971373,1768429839766,-186.591978,0.0002,2]
[401971374,1768429839775,-454.65002405,0.00020034,4]
[401971375,1768429839784,-503.71435101,0.0002013,2]
[401971376,1768429839795,-661.31872797,0.00020204,22]
[401971377,1768429839804,-1000.0,0.0002021,2]
[401971378,1768429839813,-244.0,0.0002021,2]
[401971379,1768429839823,-454.65002405,0.00020223,4]
[401971380,1768429839832,-200.91058964,0.00020274,2]
[401971381,1768429839841,-350.0,0.00020274,2]
[401971382,1768429839850,-996.312,0.00020295,2]
[401971383,1768429839859,-454.65002405,0.00020412,4]
[401971384,1768429839868,-2872.691767,0.00020548,2]
[401971385,1768429839878,-454.65002397,0.00020601,4]
[401971386,1768429839887,-1389.51235473,0.0002061,2]
[401971387,1768429839896,-1000.0,0.00020617,2]
[401971388,1768429839906,-1000.0,0.00020617,2]
[401971389,1768429839915,-1000.0,0.00020617,2]
[401971390,1768429839924,-475.0,0.00020696,2]
[401971391,1768429839934,-475.0,0.00020696,2]
[401971392,1768429839944,-475.0,0.00020696,2]
[401971393,1768429839953,-475.0,0.00020696,2]
[401971394,1768429839962,-475.0,0.00020696,2]
[401971395,1768429839972,-475.0,0.00020696,2]
[401971396,1768429839981,-475.0,0.00020696,2]
[401971397,1768429839990,-475.0,0.00020696,2]
[401971398,1768429840000,-475.0,0.00020696,2]
[401971399,1768429840009,-475.0,0.00020696,2]
[401971400,1768429840018,-475.0,0.00020696,2]
[401971401,1768429840028,-475.0,0.00020696,2]
[401971402,1768429840038,-475.0,0.00020696,2]
[401971403,1768429840047,-475.0,0.00020696,2]
[401971405,1768429840056,-475.0,0.00020696,2]
[401971407,1768429840065,-475.0,0.00020696,2]
[401971409,1768429840074,-475.0,0.00020696,2]
[401971411,1768429840083,-475.0,0.00020696,2]
[401971413,1768429840092,-475.0,0.00020696,2]
[401971415,1768429840100,-475.0,0.00020696,2]
[401971417,1768429840109,-475.0,0.00020696,2]
[401971419,1768429840118,-475.0,0.00020696,2]
[401971421,1768429840127,-475.0,0.00020696,2]
[401971423,1768429840136,-475.0,0.00020696,2]
[401971425,1768429840145,-475.0,0.00020696,2]
[401971427,1768429840154,-475.0,0.00020696,2]
[401971429,1768429840163,-475.0,0.00020696,2]
[401971431,1768429840172,-475.0,0.00020696,2]
[401971433,1768429840182,-475.0,0.00020696,2]
[401971435,1768429840191,-475.0,0.00020696,2]
[401971437,1768429840200,-475.0,0.00020696,2]
[401971439,1768429840209,-475.0,0.00020696,2]
[401971441,1768429840218,-475.0,0.00020696,2]
[401971443,1768429840227,-475.0,0.00020696,2]
[401971445,1768429840237,-475.0,0.00020696,2]
[401971447,1768429840246,-475.0,0.00020696,2]
[401971448,1768429840256,-475.0,0.00020696,2]
[401971451,1768429840265,-475.0,0.00020696,2]
[401971452,1768429840274,-475.0,0.00020696,2]
[401971454,1768429840284,-475.0,0.00020696,2]
[401971457,1768429840294,-475.0,0.00020696,2]
[401971459,1768429840304,-475.0,0.00020696,2]
[401971461,1768429840314,-475.0,0.00020696,2]
[401971463,1768429840322,-475.0,0.00020696,2]
[401971465,1768429840332,-475.0,0.00020696,2]
[401971467,1768429840344,-475.0,0.00020696,2]
[401971469,1768429840354,-475.0,0.00020696,2]
[401971471,1768429840363,-475.0,0.00020696,2]
[401971473,1768429840372,-475.0,0.00020696,2]
[401971475,1768429840381,-475.0,0.00020696,2]
[401971477,1768429840390,-475.0,0.00020696,2]
[401971479,1768429840399,-475.0,0.00020696,2]
[401971481,1768429840409,-475.0,0.00020696,2]
[401971483,1768429840418,-475.0,0.00020696,2]
[401971485,1768429840427,-475.0,0.00020696,2]
[401971487,1768429840438,-475.0,0.00020696,2]
[401971489,1768429840447,-475.0,0.00020696,2]
[401971491,1768429840456,-475.0,0.00020696,2]
[401971493,1768429840465,-475.0,0.00020696,2]
[401971495,1768429840475,-475.0,0.00020696,2]
[401971497,1768429840483,-475.0,0.00020696,2]
[401971499,1768429840493,-475.0,0.00020696,2]
[401971501,1768429840502,-475.0,0.00020696,2]
[401971503,1768429840511,-475.0,0.00020696,2]
[401971505,1768429840520,-390.578,0.00020696,2]
[401971507,1768429840530,-1613.0,0.00020726,2]
[401971509,1768429840540,-1001.4141805,0.00020822,2]
[401971511,1768429840550,-450.0,0.00020822,2]
[401971513,1768429840559,-2000.0,0.000209,2]
[401971515,1768429840569,-256.51440562,0.000209,2]
[401971517,1768429840578,-10001.200659,0.000209,7]
[401971519,1768429840588,-535.9,0.00020957,2]
[401971521,1768429840598,-277.38884084,0.00021,2]
[401971524,1768429840608,-42355.45436533,0.00021,2]
[401971526,1768429840617,-184119.846697,0.00021,7]
[401971528,1768429840627,-530.24273845,0.00021167,2]
[401971530,1768429840636,-4502.43566155,0.00021218,2]
[401971532,1768429840645,-2000.0,0.00021349,7]
[401971534,1768429840655,-550.0,0.0002137,2]
[401971536,1768429840664,-151.0,0.000214,4]
[401971538,1768429840674,-30178.382977,0.000214,7]
[401971540,1768429840683,-8800.678588,0.000214,7]
[401971541,1768429840692,-4880.93865903,0.000214,4]
[401971543,1768429840701,-26990.35,0.000215,2]
[401971546,1768429840711,-661.31872797,0.00021631,27]
[401971548,1768429840721,-588.909417,0.00021918,2]
[401971550,1768429840731,-593.168376,0.00021918,2]
[401971552,1768429840744,-593.168376,0.00021918,2]
[401971554,1768429840753,-593.168376,0.00021918,2]
[401971556,1768429840763,-593.168376,0.00021918,2]
[401971558,1768429840772,-225.938304,0.00021918,2]
[401971560,1768429840781,-151.0,0.00021918,2]
[401971562,1768429840790,-151.0,0.00021918,2]
[401971564,1768429840801,-186.701041,0.00021918,2]
[401971566,1768429840812,-151.0,0.00021918,2]
[401971568,1768429840821,-151.0,0.00021918,2]
[401971570,1768429840833,-151.0,0.00021918,2]
[401971572,1768429840842,-151.0,0.00021918,2]
[401971574,1768429840852,-151.0,0.00021918,2]
[401971576,1768429840862,-151.0,0.00021918,2]
[401971578,1768429840872,-151.0,0.00021918,2]
[401971580,1768429840881,-151.0,0.00021918,2]
[401971582,1768429840890,-151.0,0.00021918,2]
[401971584,1768429840899,-151.0,0.00021918,2]
[401971585,1768429840908,-151.0,0.00021918,2]
[401971586,1768429840917,-151.0,0.00021918,2]
[401971587,1768429840926,-650.0,0.00021918,2]
[401971588,1768429840937,-535.9,0.00021977,2]
[401971589,1768429840947,-2322.78,0.00022,7]
[401971590,1768429840957,-2000.0,0.00022062,7]
[401971591,1768429840965,-2000.0,0.00022062,7]
[401971592,1768429840974,-2000.0,0.00022062,7]
[401971593,1768429840984,-2000.0,0.00022062,7]
[401971594,1768429840992,-2000.0,0.00022062,7]
[401971595,1768429841002,-2000.0,0.00022062,7]
[401971596,1768429841011,-2000.0,0.00022062,7]
[401971597,1768429841020,-2000.0,0.00022062,7]
[401971598,1768429841029,-2000.0,0.00022062,7]
[401971599,1768429841040,-2000.0,0.00022062,7]
[401971600,1768429841052,-2000.0,0.00022062,7]
[401971601,1768429841062,-2000.0,0.00022062,7]
[401971602,1768429841071,-2000.0,0.00022062,7]
[401971603,1768429841081,-2000.0,0.00022062,7]
[401971604,1768429841090,-2000.0,0.00022062,7]
[401971605,1768429841099,-1000.0,0.00022062,7]
[401971606,1768429841109,-1000.0,0.00022062,7]
[401971607,1768429841119,-302.099902,0.00022062,30]
[401971608,1768429841130,-1000.0,0.00022231,10]
[401971609,1768429841140,-492.0,0.00022231,10]
[401971610,1768429841150,-542.381231,0.00022231,30]
[401971611,1768429841160,-813.50644317,0.00022238,14]
[401971612,1768429841169,-2000.0,0.00022281,7]
[401971613,1768429841178,-200.0,0.00022466,2]
[401971614,1768429841187,-500.0,0.00022466,2]
[401971615,1768429841197,-151.0,0.000226,6]
[401971616,1768429841206,-2258.0,0.00022728,2]
[401971617,1768429841215,-535.9,0.00022997,2]
[401971618,1768429841223,-260.92385342,0.00023014,2]
[401971619,1768429841232,-369.1365977,0.00023058,36]
[401971620,1768429841241,-813.50644317,0.00023075,16]
[401971621,1768429841250,-160.35823449,0.00023107,2]
[401971622,1768429841261,-900.0,0.00023138,2]
[401971623,1768429841272,-164.45964144,0.00023151,9]
[401971624,1768429841282,-9039.687191,0.00023151,30]
[401971625,1768429841293,-8055.997374,0.00023151,30]
[401971626,1768429841302,-262.617125,0.00023153,30]
[401971627,1768429841312,-293.85068442,0.00023158,2]
[401971628,1768429841322,-585.73325759,0.00023167,2]
[401971629,1768429841333,-1600.0,0.00023175,2]
[401971630,1768429841343,-2000.0,0.00023214,7]
[401971631,1768429841352,-336.54957802,0.00023216,2]
[401971632,1768429841361,-1208.399606,0.0002323,30]
[401971633,1768429841370,-1425.148639,0.00023235,30]
[401971634,1768429841379,-900.0,0.00023276,2]
[401971635,1768429841388,-900.0,0.00023332,2]
[401971636,1768429841397,-1355.953078,0.00023377,30]
[401971637,1768429841406,-500.0,0.00023399,2]
[401971638,1768429841415,-1600.0,0.00023413,2]
[401971639,1768429841425,-900.0,0.00023417,2]
[401971640,1768429841434,-900.0,0.00023421,2]
[401971641,1768429841443,-900.0,0.00023428,2]
[401971642,1768429841453,-20139.993432,0.00023449,30]
[401971643,1768429841463,-1600.0,0.0002346,2]
[401971644,1768429841472,-26990.35,0.000235,2]
[401971645,1768429841481,-2322.78,0.000235,7]
[401971646,1768429841491,-900.0,0.00023514,2]
[401971647,1768429841500,-900.0,0.00023519,2]
[401971648,1768429841509,-593.168376,0.00023519,2]
[401971649,1768429841519,-593.168376,0.00023519,2]
[401971650,1768429841528,-593.168376,0.00023519,2]
[401971651,1768429841537,-593.168376,0.00023519,2]
[401971652,1768429841548,-151.0,0.00023519,2]
[401971653,1768429841557,-151.0,0.00023519,2]
[401971654,1768429841566,-151.0,0.00023519,2]
[401971655,1768429841575,-282.093229,0.00023519,2]
[401971656,1768429841585,-186.591978,0.00023519,2]
[401971657,1768429841593,-186.591978,0.00023519,2]
[401971658,1768429841602,-186.591978,0.00023519,2]
[401971659,1768429841612,-186.591978,0.00023519,2]
[401971660,1768429841621,-187.824189,0.00023519,2]
[401971661,1768429841630,-900.0,0.00023532,2]
[401971662,1768429841640,-900.0,0.00023545,2]
[401971663,1768429841649,-1600.0,0.00023555,2]
[401971664,1768429841658,-900.0,0.00023555,2]
[401971665,1768429841667,-8746.76431,0.00023575,30]
[401971666,1768429841676,-190.0,0.00023605,2]
[401971667,1768429841685,-1600.0,0.00023624,2]
[401971668,1768429841693,-1600.0,0.00023626,2]
[401971669,1768429841702,-900.0,0.00023626,2]
[401971670,1768429841711,-900.0,0.00023638,2]
[401971671,1768429841724,-171.590908,0.00023638,2]
[401971672,1768429841733,-171.320259,0.00023638,2]
[401971673,1768429841742,-151.0,0.00023638,2]
[401971674,1768429841752,-285.163634,0.00023638,2]
[401971675,1768429841762,-151.0,0.00023638,2]
[401971676,1768429841771,-151.0,0.00023638,2]
[401971677,1768429841780,-151.0,0.00023638,2]
[401971678,1768429841789,-1600.0,0.00023687,2]
[401971679,1768429841799,-900.0,0.00023697,2]
[401971680,1768429841808,-237.0,0.00023699,11]
[401971681,1768429841818,-151.0,0.000237,5]
[401971682,1768429841826,-4289.84238407,0.000237,14]
[401971683,1768429841835,-1600.0,0.0002372,2]
[401971684,1768429841844,-522.88356834,0.00023737,2]
[401971685,1768429841853,-336.56,0.00023751,2]
[401971686,1768429841862,-1600.0,0.00023795,2]
[401971687,1768429841871,-900.0,0.00023846,2]
[401971688,1768429841880,-4502.43566155,0.000239,2]
[401971689,1768429841888,-813.50644317,0.00023913,17]
[401971690,1768429841897,-900.0,0.00023965,2]
[401971691,1768429841907,-1600.0,0.0002398,2]
[401971692,1768429841918,-1600.0,0.00023983,2]
[401971693,1768429841929,-1041.66666667,0.00024,7]
[401971694,1768429841938,-1687.3,0.00024,30]
[401971695,1768429841947,-128967.02373672,0.00024,2]
[401971696,1768429841956,-1931.32974169,0.00024,60]
[401971697,1768429841966,-1736.447596,0.00024,2]
[401971698,1768429841975,-465.90719096,0.00024,2]
[401971699,1768429841984,-535.9,0.00024017,2]
[401971700,1768429841993,-500.0,0.00024029,2]
[401971701,1768429842002,-500.0,0.00024033,2]
[401971702,1768429842011,-4167.166941,0.00024035,30]
[401971703,1768429842020,-500.0,0.00024098,2]
[401971704,1768429842029,-900.0,0.00024105,2]
[401971705,1768429842038,-1600.0,0.00024117,2]
[401971706,1768429842047,-900.0,0.00024125,2]
[401971707,1768429842056,-900.0,0.00024128,2]
[401971708,1768429842065,-499.3,0.00024129,2]
[401971709,1768429842074,-30000.0,0.00024133,2]
[401971710,1768429842083,-1600.0,0.00024137,2]
[401971711,1768429842093,-477972.68394232,0.00024142,2]
[401971712,1768429842101,-593.168376,0.00024142,2]
[401971713,1768429842110,-593.168376,0.00024142,2]
[401971714,1768429842119,-593.168376,0.00024142,2]
[401971715,1768429842128,-593.168376,0.00024142,2]
[401971716,1768429842137,-151.0,0.00024142,2]
[401971717,1768429842147,-151.0,0.00024142,2]
[401971718,1768429842155,-151.0,0.00024142,2]
[401971719,1768429842166,-186.591978,0.00024142,2]
[401971720,1768429842176,-186.591978,0.00024142,2]
[401971721,1768429842186,-186.591978,0.00024142,2]
[401971722,1768429842197,-186.591978,0.00024142,2]
[401971723,1768429842207,-231.464097,0.00024142,2]
[401971724,1768429842216,-151.0,0.00024142,2]
[401971725,1768429842226,-151.0,0.00024142,2]
[401971726,1768429842236,-2000.0,0.00024146,7]
[401971727,1768429842245,-76716.60279,0.0002415,30]
[401971728,1768429842255,-1082.98429516,0.00024168,2]
[401971729,1768429842266,-500.0,0.00024199,2]
[401971730,1768429842275,-23398.38608296,0.000242,2]
[401971731,1768429842285,-500.0,0.00024245,2]
[401971732,1768429842294,-1600.0,0.00024295,2]
[401971733,1768429842304,-500.0,0.00024324,2]
[401971736,1768429842313,-1600.0,0.00024356,2]
[401971738,1768429842324,-900.0,0.00024359,2]
[401971740,1768429842334,-1000.0,0.00024454,10]
[401971742,1768429842343,-791.0,0.00024454,10]
[401971744,1768429842352,-500.0,0.00024456,2]
[401971745,1768429842362,-369.1365977,0.00024484,48]
[401971746,1768429842371,-1600.0,0.00024495,2]
[401971747,1768429842380,-1600.0,0.00024496,2]
[401971748,1768429842389,-151.0,0.00024496,2]
[401971749,1768429842399,-151.0,0.00024496,2]
[401971750,1768429842408,-151.0,0.00024496,2]
[401971751,1768429842417,-795.987765,0.00024496,2]
[401971752,1768429842427,-795.987765,0.00024496,2]
[401971753,1768429842437,-275.55471384,0.00024496,2]
[401971754,1768429842447,-795.987765,0.00024496,2]
[401971755,1768429842456,-795.987765,0.00024496,2]
[401971756,1768429842465,-151.0,0.00024496,2]
[401971757,1768429842475,-151.0,0.00024496,2]
[401971758,1768429842484,-151.0,0.00024496,2]
[401971759,1768429842494,-151.0,0.00024496,2]
[401971760,1768429842503,-151.0,0.00024496,2]
[401971761,1768429842513,-151.0,0.00024496,2]
[401971762,1768429842523,-151.0,0.00024496,2]
[401971763,1768429842533,-151.0,0.00024496,2]
[401971764,1768429842544,-151.0,0.00024496,2]
[401971765,1768429842554,-151.0,0.00024496,2]
[401971766,1768429842566,-1770.408967,0.00024496,2]
[401971767,1768429842577,-1770.408967,0.00024496,2]
[401971768,1768429842588,-1770.408967,0.00024496,2]
[401971769,1768429842598,-1770.408967,0.00024496,2]
[401971770,1768429842607,-151.0,0.00024496,2]
[401971771,1768429842616,-1167.86828,0.00024496,2]
[401971772,1768429842626,-1167.86828,0.00024496,2]
[401971773,1768429842634,-151.0,0.00024496,2]
[401971774,1768429842644,-1167.86828,0.00024496,2]
[401971775,1768429842653,-1167.86828,0.00024496,2]
[401971776,1768429842662,-263.265987,0.00024496,2]
[401971777,1768429842671,-263.265987,0.00024496,2]
[401971778,1768429842680,-240.755518,0.00024496,2]
[401971779,1768429842689,-263.265987,0.00024496,2]
[401971780,1768429842698,-856.896701,0.00024496,2]
[401971781,1768429842707,-263.265987,0.00024496,2]
[401971782,1768429842717,-856.896701,0.00024496,2]
[401971783,1768429842727,-856.896701,0.00024496,2]
[401971784,1768429842737,-856.896701,0.00024496,2]
[401971785,1768429842748,-167.77,0.000245,7]
[401971786,1768429842758,-1126.0,0.000245,5]
[401971787,1768429842769,-900.0,0.00024503,2]
[401971788,1768429842778,-180.21625951,0.00024524,2]
[401971789,1768429842788,-1600.0,0.00024526,2]
[401971790,1768429842799,-1600.0,0.0002456,2]
[401971791,1768429842809,-2322.78,0.000246,7]
[401971792,1768429842820,-1600.0,0.00024602,2]
[401971793,1768429842831,-1600.0,0.00024649,2]
[401971794,1768429842840,-514.22907277,0.0002465,2]
[401971795,1768429842849,-13805.31186763,0.0002465,2]
[401971806,1768429843454,-500.0,0.00013698,2]
[401971807,1768429843465,-500.0,0.00013698,2]
[401971808,1768429843475,-500.0,0.00013698,2]
[401971809,1768429843485,-2222.3649,0.0001451,2]
[401971817,1768429845932,-1295.16480768,0.0001451,2]
[401971831,1768429859362,500.0,0.00026998,120]
[401971832,1768429860106,500.0,0.00026998,120]
[401971833,1768429860866,500.0,0.00026998,120]
[401971834,1768429861606,500.0,0.00026998,120]
[401971835,1768429862390,500.0,0.00026998,120]
[401971836,1768429929659,500.0,0.00026998,120]
[401971837,1768429930788,500.0,0.00026998,120]
[401971838,1768429931553,500.0,0.00026998,120]
[401971839,1768429932310,500.0,0.00026998,120]
[401971840,1768429933064,500.0,0.00026998,120]
[401971841,1768429933835,500.0,0.00026998,120]
[401971843,1768430001202,500.0,0.00026998,120]
[401971858,1768430280012,178.66,4.995e-05,2]
[401971859,1768430402241,155.76,5e-05,2]
[401971945,1768430966370,1000.0,0.00027397,120]
[401971976,1768431031749,-574.0,0.00010959,2]
[401971978,1768431031758,-3483.1962811,0.00012229,2]
[401971980,1768431031768,-159.16315923,0.00012229,2]
[401971982,1768431031777,-300.0,0.00012327,2]
[401971984,1768431031786,-1200.0,0.00012327,2]
[401971986,1768431031796,-358.79871275,0.00012327,2]
[401971988,1768431031805,-42511.161621,0.00012328,2]
[401971990,1768431031816,-7488.838379,0.00012328,2]
[401971992,1768431031825,-477.51484525,0.00012328,2]
[401971994,1768431031835,-500.0,0.00012328,2]
[401971996,1768431031844,-500.0,0.00012328,2]
[401971999,1768431031854,-500.0,0.00012328,2]
[401972001,1768431031862,-294.24554015,0.00012328,2]
[401972003,1768431031872,-542.12445985,0.00012328,2]
[401972005,1768431031882,-469.37,0.00012329,2]
[401972007,1768431031891,-391.14,0.00012329,2]
[401972009,1768431031901,-325.95,0.00012329,2]
[401972011,1768431031911,-271.63,0.00012329,2]
[401972013,1768431031920,-226.36,0.00012329,2]
[401972015,1768431031930,-188.63,0.00012329,2]
[401972017,1768431031942,-157.19,0.00012329,2]
[401972019,1768431031953,-785.98,0.00012329,2]
[401972021,1768431031966,-500.0,0.00012329,2]
[401972023,1768431031975,-500.0,0.00012329,2]
[401972025,1768431031984,-500.0,0.00012329,2]
[401972027,1768431031993,-500.0,0.00012329,2]
[401972029,1768431032002,-500.0,0.00012329,2]
[401972031,1768431032011,-500.0,0.00012329,2]
[401972033,1768431032020,-500.0,0.00012329,2]
[401972035,1768431032029,-608.07934395,0.00012329,2]
[401972037,1768431032038,-500.0,0.00012329,2]
[401972039,1768431032047,-300.0,0.00012574,2]
[401972041,1768431032057,-300.0,0.00012574,2]
[401972043,1768431032070,-300.0,0.00012574,2]
[401972045,1768431032079,-300.0,0.00012574,2]
[401972047,1768431032087,-300.0,0.00012574,2]
[401972049,1768431032098,-300.0,0.00012574,2]
[401972051,1768431032107,-300.0,0.00012574,2]
[401972054,1768431032117,-300.0,0.00012574,2]
[401972056,1768431032126,-300.0,0.00012574,2]
[401972058,1768431032137,-300.0,0.00012574,2]
[401972059,1768431032147,-300.0,0.00012574,2]
[401972061,1768431032158,-300.0,0.00012574,2]
[401972063,1768431032167,-300.0,0.00012574,2]
[401972065,1768431032176,-300.0,0.00012574,2]
[401972067,1768431032186,-300.0,0.00012574,2]
[401972070,1768431032196,-600.0,0.00012824,2]
[401972071,1768431032206,-500.0,0.00012999,2]
[401972074,1768431032216,-215.84582765,0.00012999,2]
[401972076,1768431032225,-500.0,0.00013136,2]
[401972077,1768431032236,-7165.70883618,0.00013173,2]
[401972079,1768431032246,-500.0,0.00013273,2]
[401972082,1768431032255,-500.0,0.00013273,2]
[401972083,1768431032264,-501.85584568,0.00013273,2]
[401972086,1768431032273,-500.0,0.00013273,2]
[401972088,1768431032283,-405.22353127,0.00013273,2]
[401972605,1768431037942,-500.0,0.00013173,2]
[401972607,1768431037952,-94.77646873,0.00013273,2]
[401972609,1768431037961,-500.0,0.00013273,2]
[401972611,1768431037970,-500.0,0.00013273,2]
[401972613,1768431037979,-500.0,0.00013273,2]
[401972615,1768431037988,-241.59353127,0.00013273,2]
[401972619,1768431038012,-258.40646873,0.00013273,2]
[401972620,1768431038020,-326.76109943,0.00013273,2]
[401972621,1768431038028,-500.0,0.00013273,2]
[401972622,1768431038037,-500.0,0.00013273,2]
[401972623,1768431038046,-500.0,0.00013273,2]
[401972624,1768431038056,-500.0,0.00013273,2]
[401972625,1768431038067,-500.0,0.00013273,2]
[401972626,1768431038076,-397.87367922,0.00013273,2]
[401972627,1768431038085,-315.55117626,0.00013273,2]
[401972628,1768431038094,-562.21911947,0.00013273,2]
[401972629,1768431038104,-500.0,0.00013273,2]
[401972630,1768431038114,-500.0,0.00013273,2]
[401972631,1768431038123,-500.0,0.00013273,2]
[401972632,1768431038132,-500.0,0.00013273,2]
[401972633,1768431038141,-500.0,0.00013273,2]
[401972634,1768431038150,-500.0,0.00013273,2]
[401972635,1768431038159,-179.89432296,0.00013273,2]
[401972636,1768431038168,-500.0,0.00013273,2]
[401972637,1768431038178,-500.0,0.00013273,2]
[401972638,1768431038187,-500.0,0.00013273,2]
[401972639,1768431038200,-500.0,0.00013273,2]
[401972640,1768431038209,-500.0,0.00013273,2]
[401972641,1768431038219,-500.0,0.00013273,2]
[401972642,1768431038228,-500.0,0.00013273,2]
[401972643,1768431038238,-500.0,0.00013273,2]
[401972644,1768431038247,-476.24625729,0.00013273,2]
[401972645,1768431038256,-500.0,0.00013273,2]
[401972646,1768431038266,-500.0,0.00013273,2]
[401972647,1768431038275,-648.56695785,0.00013273,2]
[401972648,1768431038288,-500.0,0.00013273,2]
[401972649,1768431038297,-424.36340331,0.00013273,2]
[401972650,1768431038307,-619.03226299,0.00013273,2]
[401972651,1768431038316,-500.0,0.00013273,2]
[401972652,1768431038325,-500.0,0.00013273,2]
[401972653,1768431038334,-500.0,0.00013273,2]
[401972654,1768431038343,-500.0,0.00013273,2]
[401972655,1768431038353,-500.0,0.00013273,2]
[401972656,1768431038362,-344.64451203,0.00013273,2]
[401972657,1768431038371,-500.0,0.00013273,2]
[401972658,1768431038381,-500.0,0.00013273,2]
[401972659,1768431038390,-500.0,0.00013273,2]
[401972660,1768431038399,-500.0,0.00013273,2]
[401972661,1768431038409,-500.0,0.00013273,2]
[401972663,1768431038418,-500.0,0.00013273,2]
[401972665,1768431038427,-500.0,0.00013273,2]
[401972667,1768431038436,-500.0,0.00013273,2]
[401972669,1768431038445,-500.0,0.00013273,2]
[401972671,1768431038455,-580.25700179,0.00013273,2]
[401972672,1768431038464,-278.58612381,0.00013447,2]
[401972674,1768431038473,-420.0,0.00013528,2]